Cogmind - Beta 14 @@@ ROGUE MODE // 2024.10.26 @ 13:35:41 Player: zeyvai Result: Destroyed by as-85086 with Assembled Blade Performance ------------- Evolutions (1) 500 Regions Visited (4) 800 Robots Destroyed (8) 40 Value Destroyed (185) 185 Prototype IDs (0) 0 Alien Tech Used (0) 0 Bonus (0) 0 TOTAL SCORE: 1525 Bonus ------- None Cogmind --------- Core Integrity 0/400 Matter 285/300 Energy 71/100 System Corruption 18% Temperature Cool (0) Movement Core (1400) Ox27 Location -9/Mines Parts ------- > --- POWER (1) -------- (None) > --- PROPULSION (3) --- (None) > --- UTILITY (3) ------ Huge Storage Unit > --- WEAPON (2) ------- Mining Claw > --- INVENTORY (25) --- Ion Engine Light Ion Engine Hover Unit Flight Unit Flight Unit Small Storage Unit Medium Storage Unit High-capacity Battery (250) Small Matter Pod (50) High-capacity Matter Pod (200) Compact Matter Pod (150) Signal Interpreter Signal Interpreter Terrain Scanner ECM Suite Small Laser Datajack Mining Claw Mining Claw Mining Claw Peak State ------------ > --- POWER ------------ Ion Engine > --- PROPULSION ------- Light Treads Light Treads Aluminum Leg > --- UTILITY ---------- Huge Storage Unit Structural Scanner Sensor Array > --- WEAPON ----------- Medium Laser Assault Rifle > --- INVENTORY -------- Ion Engine Light Ion Engine Aluminum Leg Aluminum Leg Compact Wheel Compact Wheel Hover Unit Small Storage Unit Medium Storage Unit High-capacity Battery Small Matter Pod High-capacity Matter Pod Compact Matter Pod Signal Interpreter Signal Interpreter Terrain Scanner Small Laser Datajack Mining Claw Mining Claw Mining Claw Mining Claw Mining Claw [Rating: 11] Favorites ----------- Power Ion Engine Engine Ion Engine Propulsion Light Treads Treads Light Treads Leg Aluminum Leg Wheel Compact Wheel Utility Huge Storage Unit Device Sensor Array Storage Huge Storage Unit Weapon Medium Laser Energy Gun Medium Laser Ballistic Gun Assault Rifle Launcher EMP Blaster Slashing Weapon Mining Claw Build | -11 -10 -10 -9 -9 ------- Run | Yrd Mat Min Mat Min Slots Evolved 2 | . . . 2 . Power . | . . . . . Propulsion 1 | . . . 1 . Utility 1 | . . . 1 . Weapon . | . . . . . Parts Attached 20 | 6 5 . 2 7 Power 1 | 1 . . . . Engine 1 | 1 . . . . Core . | . . . . . Reactor . | . . . . . Propulsion 7 | 3 . . 1 3 Treads 3 | 2 . . . 1 Leg 1 | . . . 1 . Wheel 3 | 1 . . . 2 Hover . | . . . . . Flight . | . . . . . Utility 6 | 1 4 . 1 . Device 4 | . 3 . 1 . Storage 2 | 1 1 . . . Processor . | . . . . . Hackware . | . . . . . Protection . | . . . . . Artifact . | . . . . . Weapon 6 | 1 1 . . 4 Energy Gun 2 | 1 . . . 1 Energy Cannon . | . . . . . Ballistic Gun 1 | . 1 . . . Ballistic Cannon . | . . . . . Launcher 1 | . . . . 1 Special Weapon . | . . . . . Impact Weapon . | . . . . . Slashing Weapon 2 | . . . . 2 Piercing Weapon . | . . . . . Special Melee Weapon . | . . . . . Unidentified Prototypes . | . . . . . Parts Lost 13 | . . . . 13 Power 1 | . . . . 1 Propulsion 5 | . . . . 5 Utility 2 | . . . . 2 Weapon 5 | . . . . 5 Highest Loss Streak 9 | . . . . 9 To Critical Strikes . | . . . . . Average Slot Usage (%) 96 | . 97 100 100 88 Engine 12 | . 14 14 11 10 Treads 24 | . 28 28 22 16 Leg 4 | . . . 11 7 Device 15 | . 12 14 22 17 Storage 12 | . 14 14 11 11 Energy Gun 12 | . 14 14 11 10 Ballistic Gun 11 | . 13 14 11 7 Peak Build Rating 11 | 5 9 9 11 11 Average Rating 8 | 3 7 9 10 10 On Entrance 6 | . 5 9 9 11 Naked Turns . | . . . . . Heaviest Build 92 | 12 90 90 91 92 Greatest Support 40 | 40 40 40 40 40 Greatest Overweight (x) 29 | . 2 2 2 29 Average Overweight (x) 1 | . 1 2 2 2 Largest Inventory Capacity 25 | 8 25 25 25 25 Average Capacity 24 | 7 24 25 25 25 Most Carried 25 | 7 22 25 25 25 Average Carried 18 | 5 12 24 23 24 Final Capacity 25 | 8 25 25 25 25 Final Carried 25 | 7 22 25 25 20 Class Distribution -------------------- 100% | Mutant Dominant Class ---------------- Mutant | -10/Materials Mutant | -10/Mines Mutant | -9/Materials Mutant | -9/Mines Resources | -11 -10 -10 -9 -9 ----------- Run | Yrd Mat Min Mat Min Matter Collected 627 | 252 96 164 55 60 Remotely . | . . . . . Salvage Created 291 | . 160 . 79 52 Parts 20 | . 16 . 4 . Haulers Intercepted . | . . . . . Recyclers Shooed . | . . . . . Parts Field Recycled . | . . . . . Retrieved Matter . | . . . . . Parts Self-Destructed . | . . . . . Prevented . | . . . . . Kills | -11 -10 -10 -9 -9 ------- Run | Yrd Mat Min Mat Min Combat Hostiles Destroyed 10 | . 5 . 1 4 Guns 10 | . 5 . 1 4 Classes Destroyed 5 | . 3 . 1 1 Watcher 2 | . 1 . 1 . Swarmer 3 | . 3 . . . Grunt 2 | . 2 . . . Sentry 1 | . . . 1 . Assembled 4 | . . . . 4 Best Kill Streak 3 | . 3 . 1 2 Combat Bots Only 3 | . 3 . 1 2 Max Kills in Single Turn 1 | . 1 . 1 1 Gunslinging . | . . . . . Exploded . | . . . . . Melee . | . . . . . Uniques/NPCs Destroyed . | . . . . . Combat | -11 -10 -10 -9 -9 -------- Run | Yrd Mat Min Mat Min Hostile Shots Fired 102 | . 21 . 38 43 Missed 36 | . 10 . 15 11 Damage Taken 1404 | . 98 . 347 959 Core 440 | . 26 . 44 370 Absorbed by Shields . | . . . . . Core Remaining (%) 94 | 100 . 89 . . Volleys Fired 48 | . 15 . 15 18 Largest 2 | . 2 . 2 2 Hottest 83 | . 70 . 70 83 Shots Fired 83 | . 27 . 30 26 Gun 80 | . 27 . 30 23 Cannon . | . . . . . Launcher 3 | . . . . 3 Special . | . . . . . Kinetic 34 | . 15 . 15 4 Thermal 46 | . 12 . 15 19 Explosive . | . . . . . Electromagnetic 3 | . . . . 3 Robot Hit Streak 10 | . 6 . 9 10 Robot Miss Streak 5 | . 4 . 5 5 Penetration Max . | . . . . . Secondary Targets 1 | . 1 . . . Max Gunslinging Chain 1 | . 1 . . . Shots Hit Robots 42 | . 13 . 19 10 Core Hits 18 | . 8 . 4 6 Critical Kills . | . . . . . Critical Parts Destroyed . | . . . . . Critical Strikes 3 | . 1 . 1 1 Burn 3 | . 1 . 1 1 Melee Attacks 4 | . . . . 4 Impact . | . . . . . Slashing 4 | . . . . 4 Piercing . | . . . . . Sneak Attacks . | . . . . . Combat Hostiles . | . . . . . Follow-up Attacks . | . . . . . Damage Inflicted 609 | . 162 . 241 206 Guns 552 | . 162 . 241 149 Cannons . | . . . . . Explosions 57 | . . . . 57 Melee . | . . . . . Ramming . | . . . . . Kinetic 213 | . 62 . 116 35 Thermal 339 | . 100 . 125 114 Explosive . | . . . . . Electromagnetic 57 | . . . . 57 Impact . | . . . . . Slashing . | . . . . . Piercing . | . . . . . Highest Corruption 18 | . . . 1 18 Average Corruption 1 | . . . 1 2 Corruption Purged . | . . . . . Corruption Blocked . | . . . . . Effects 15 | . . . 6 9 Message Errors 3 | . . . 1 2 Matter Fused 3 | . . . 2 1 Heat Flow Errors 2 | . . . . 2 Energy Discharges 4 | . . . 3 1 Data Loss (minor) 2 | . . . . 2 Misfires 1 | . . . . 1 Overload Shots . | . . . . . Overflow Damage . | . . . . . Projectiles . | . . . . . Explosions . | . . . . . Melee . | . . . . . Knockbacks . | . . . . . Impact . | . . . . . Kinetic . | . . . . . Secondary . | . . . . . Self-Inflicted Damage 39 | . . . . 39 Shots 2 | . . . . 2 Rammed . | . . . . . Targets Rammed . | . . . . . Kicked . | . . . . . Crushed . | . . . . . Highest Temperature 220 | . 69 . 36 220 Average Temperature 35 | . 21 . 23 62 Received Heat Transfer 156 | . 30 . 126 . Siege Activations . | . . . . . Robots Corrupted . | . . . . . Combat Hostiles . | . . . . . Parts Fried . | . . . . . Impact Corruptions . | . . . . . Robots Melted . | . . . . . Combat Hostiles . | . . . . . Parts Melted 3 | . 1 . 2 . Heat Transferred 1221 | . 370 . 444 407 Parts Sabotaged . | . . . . . Parts Stolen . | . . . . . Parts Stripped . | . . . . . Power Chain Reactions . | . . . . . Alert | -11 -10 -10 -9 -9 ------- Run | Yrd Mat Min Mat Min Peak Influence 82 | . 70 . 82 30 Initial 5 | . . . . 5 Average 12 | . 16 . 19 3 Maximum Alert Level . | . . . . . Low Security (%) 100 | 100 100 100 100 100 Level 1 . | . . . . . Level 2 . | . . . . . Level 3 . | . . . . . Level 4 . | . . . . . Level 5 . | . . . . . High Security . | . . . . . Max Security . | . . . . . Squads Dispatched 1 | . . . 1 . Investigation 1 | . . . 1 . Extermination . | . . . . . Reinforcement . | . . . . . Assault . | . . . . . Garrison . | . . . . . Intercept . | . . . . . Searches Triggered . | . . . . . Construction Impeded . | . . . . . Haulers Reinforced . | . . . . . Active Scanning Responses . | . . . . . Cargo Convoy Interrupts . | . . . . . Stealth | -11 -10 -10 -9 -9 --------- Run | Yrd Mat Min Mat Min Distress Signals . | . . . . . Communications Jammed . | . . . . . Distress Signals . | . . . . . Times Spotted 24 | . 10 . 8 6 Peak Tracking Total 3 | . 2 . 3 2 Tactical Retreats . | . . . . . Traps | -11 -10 -10 -9 -9 ------- Run | Yrd Mat Min Mat Min Traps Triggered . | . . . . . Indirectly . | . . . . . Trap Hack Attempts . | . . . . . Triggered . | . . . . . Disarmed . | . . . . . Reprogrammed . | . . . . . Reused . | . . . . . Traps Extracted . | . . . . . Installed . | . . . . . Triggered . | . . . . . Machines | -11 -10 -10 -9 -9 ---------- Run | Yrd Mat Min Mat Min Machines Disabled 1 | . . . . 1 Max in Single Turn 1 | . . . . 1 Machines Repaired . | . . . . . Machines Dismantled . | . . . . . Machines Sabotaged . | . . . . . Overloaded Fab Kills . | . . . . . Hacking | -11 -10 -10 -9 -9 --------- Run | Yrd Mat Min Mat Min Machines Accessed 4 | . 2 . 2 . Terminals 2 | . 2 . . . Fabricators . | . . . . . Repair Stations . | . . . . . Recycling Units 1 | . . . 1 . Scanalyzers 1 | . . . 1 . Garrison Access . | . . . . . Total Hacks 12 | . 5 . 7 . Successful 5 | . 1 . 4 . Failed 7 | . 4 . 3 . Catastrophic 2 | . 1 . 1 . Database Lockouts . | . . . . . Manual . | . . . . . Terminals 5 | . 5 . . . Fabricators . | . . . . . Repair Stations . | . . . . . Recycling Units 3 | . . . 3 . Scanalyzers 4 | . . . 4 . Garrison Access . | . . . . . Terminal Hacks 1 | . 1 . . . Locate Traps 1 | . 1 . . . Fabricator Hacks . | . . . . . Repair Station Hacks . | . . . . . Recycling Unit Hacks 1 | . . . 1 . Report Inventory 1 | . . . 1 . Scanalyzer 3 | . . . 3 . Insert Component 2 | . . . 2 . Analyze 1 | . . . 1 . Garrison Access Hacks . | . . . . . Unauthorized Hacks . | . . . . . Terminals . | . . . . . Fabricators . | . . . . . Repair Stations . | . . . . . Recycling Units . | . . . . . Scanalyzers . | . . . . . Garrison Access . | . . . . . Data Cores Recovered . | . . . . . Used . | . . . . . Hacking Detections 4 | . 2 . 2 . Full Trace Events 1 | . . . 1 . Feedback Events 1 | . . . 1 . Corruption 1 | . . . 1 . Feedback Blocked . | . . . . . Robot Schematics Acquired . | . . . . . Robots Built . | . . . . . Authchips . | . . . . . Time . | . . . . . Total Robot Build Rating . | . . . . . Part Schematics Acquired 1 | . . . 1 . Parts Built . | . . . . . Authchips . | . . . . . Time . | . . . . . Total Part Build Rating . | . . . . . Parts Repaired . | . . . . . Time . | . . . . . Parts Recycled . | . . . . . Recycled Matter . | . . . . . Retrieved Matter . | . . . . . Retrieved Components . | . . . . . Parts Scanalyzed 1 | . . . 1 . Part Schematics Acquired 1 | . . . 1 . Parts Damaged . | . . . . . Bothacking | -11 -10 -10 -9 -9 ------------ Run | Yrd Mat Min Mat Min Used RIF Installer . | . . . . . Robots Hacked . | . . . . . Non-combat . | . . . . . Combat . | . . . . . Robot Hacks Applied . | . . . . . Relay Couplers Released . | . . . . . Fabnet Peak Effective % . | . . . . . Robots Rewired . | . . . . . Allies Hacked . | . . . . . Hacks Repelled . | . . . . . Allies | -11 -10 -10 -9 -9 -------- Run | Yrd Mat Min Mat Min Total Allies . | . . . . . Largest Group . | . . . . . Highest-Rated Group . | . . . . . Highest-Rated Ally . | . . . . . Total Orders . | . . . . . Ally Attacks . | . . . . . Total Damage . | . . . . . Kills . | . . . . . Allies Corrupted . | . . . . . Allies Melted . | . . . . . Intel | -11 -10 -10 -9 -9 ------- Run | Yrd Mat Min Mat Min Robot Analysis Total . | . . . . . Derelict Logs Recovered . | . . . . . Drone Launches . | . . . . . Drone Recoveries . | . . . . . Exploration | -11 -10 -10 -9 -9 ------------- Run | Yrd Mat Min Mat Min Turns Passed 2943 | 84 1260 343 686 570 Spaces Moved 878 | 60 322 107 195 194 Core 27 | 25 . . . 2 Treads 776 | 34 322 107 195 118 Legs . | . . . . . Wheels 75 | 1 . . . 74 Hover . | . . . . . Flight . | . . . . . Fastest Speed 50 | 50 160 320 320 130 Average Speed 290 | 113 313 320 320 259 Slowest Speed 1500 | 160 320 320 320 1500 Overloaded Moves . | . . . . . Propulsion Burnouts . | . . . . . Robots Hopped . | . . . . . Cave-ins Triggered . | . . . . . Exploration Rate (%) 33 | 5 53 38 20 52 Regions Visited 4 Branch Regions 2 Pre-discovered Areas . | . . . . . Known Exits Taken . | . . . . . Unknown Exits Taken 4 | 1 1 1 1 . Scrap Searched . | . . . . . Spaces Dug . | . . . . . Terrain Destroyed . | . . . . . Melee . | . . . . . Projectile . | . . . . . AOE . | . . . . . Terrain Rammed . | . . . . . Walls Destroyed . | . . . . . Machines Disabled . | . . . . . Actions | -11 -10 -10 -9 -9 --------- Run | Yrd Mat Min Mat Min Total 1192 | 75 546 111 229 231 Wait 204 | . 188 . 16 . Move 874 | 59 321 106 194 194 Hop . | . . . . . Pick Up 37 | 9 17 4 2 5 Fast Attach 3 | 3 . . . . Attach 14 | 3 2 . 2 7 Detach 1 | 1 . . . . Swap 3 | . 3 . . . Drop 4 | . . 1 . 3 Fire 48 | . 15 . 15 18 Melee 4 | . . . . 4 Ram . | . . . . . Kick . | . . . . . Crush . | . . . . . Escape Stasis . | . . . . . Rewire . | . . . . . Trap . | . . . . . Miscellaneous . | . . . . . Route ------- -11/Scrapyard -10/Materials (discovered 2 exits: *Mat / [*Min]) -10/Mines -9/Materials -9/Mines (discovered 1 exit: [*Mat]) History --------- Turn | Location | Event 5 | -11/Scrapyard | Discovered new exit (range 14) 85 | -11/Scrapyard | Entered Materials 300 | -10/Materials | Build established: Mutant 1046 | -10/Materials | Discovered new exit (range 8) 1241 | -10/Materials | Discovered new exit (range 7) 1345 | -10/Materials | Entered Mines 1666 | -10/Mines | Discovered new exit (range 7) 1688 | -10/Mines | Entered Materials 1688 | -9/Materials | Evolved 2 slots: Propulsion x1, Utility x1 2340 | -9/Materials | Discovered new exit (range 8) 2374 | -9/Materials | Entered Mines 2391 | -9/Mines | Assembled infested the area 2796 | -9/Mines | Lost 4 parts (2n1u1w) 2814 | -9/Mines | Discovered new exit (range 5) 2911 | -9/Mines | System corruption reached 10% 2930 | -9/Mines | Core integrity fell below 50% 2942 | -9/Mines | Core integrity fell below 20% 2944 | -9/Mines | Destroyed by as-85086 with Assembled Blade Last Messages --------------- U-05 Engineer builds a Wall. U-05 Engineer lays Concrete. Med. Laser destroyed. U-05 Engineer lays Concrete. XON7/P DEU<|%EOES3SXQJR2 U-05 Engineer builds a Wall. U-05 Engineer lays Concrete. U-05 Engineer builds a Wall. EMP Blaster destroyed. U-05 Engineer lays Concrete. Beam Rifle destroyed. Com. Wheel destroyed. U-05 Engineer lays Concrete. System corrupted: Component data lost. U-05 Engineer lays Concrete. U-05 Engineer builds a Wall. Knocked back. Mining Claw destroyed. System corrupted by crushing effect (+2). U-05 Engineer lays Concrete. Map ----- +----------------------------------------------------+ | ##### #########?????????????? | | ### """ #########???????????? | | ## """ #####??????????? | | ## """ ###??????????? | | ### ##??????????? | | ?### ##### ##??????????? | | ?### ## ###### ##??????????? | | ?## ## ##?#### ###??????????? | | ?## ## ##??########??????????? | | ?## # ##???######???????????? | | ?## ## ####????????????????????? | | ## ### #####???????????????????? | | ### #### #####???????????????????? | | ####### ###??????????????????? | | ?###### """ ###??????????????????? | | ?????## "" = T##??????????????????? | | ?????## """*[###??????????????????? | | ?????## =%*##########??????????? | | ?????####### %############# ??????? | | ?????####### % ##### ??????? | | ?????####### ####### ### ??????? | | ?????####### ####### ### ##??????? | | ?????## ##???## ### ######??? | | ##???## ##???## ### ######??? | | ####### aa ##???## !##??? | | ##### @ ###???##########%##### | | # # ## ####???##########!##### | | # # <###?????????##### ## | | u ##?????????##### | | # #########?????????### " " | | # # #########?????????## """ | | # # # ###?????????????## "" | | # # ##?############### | | ### ##################### | | ### ## ### $ | | # # ## | | ## ###### ########### | | ########### | | # ##??????## ### | | ## % ###??????## ##### | | # * ###??????## ##### | | #### = %= ##???????### ##??## | | ##### %== ##???????#######??## | | ?#### ! %##????????#####???### | | ?### # ##????????????????#### | | ?## ##= ##?????????????????### | | ?## !###% ##??????????????????## | | ?### ####= ##??????????????????## | | ?#### #### ##??????????????????## | | ??### #### %###?????????????????## | +----------------------------------------------------+ Best States ------------- Heat Dissipation 28 Energy Generation 10 Energy Capacity 250 Matter Stores 300 Matter Capacity 300 Sight Range 16 Robot Scan Range 14 Terrain Scan Density 10 Evasion (%) 50 Recoil Reduction 2 Item Schematics ----------------- Signal Interpreter | -9/Materials | Scanalyzed Robot Schematics ------------------ None Fabricated ------------ Nothing Alien Tech Used ----------------- None Achievements -------------- None Challenges ------------ None Game ------ Seed PhaseExpertSuite Manual? 0 Play Time 00:12:13 Cumulative 49.2 hours Start 2024.10.26 @ 13:26:14 End 2024.10.26 @ 13:35:41 Sessions 1 Manual Loads 0 Difficulty Rogue Special Mode None Game No. 51 Rogue 44 Adventurer 5 Explorer 2 Win Type - Total 0 Types 0/0/0/0/0/0/0/0/0 Lore% 20 Gallery% 37 Achievement% 28 Wizard Run 0 Options --------- Layout 1 ASCII 0 Keyboard 0 Movement Mouse Keybinds 0 Fullscreen 0 Font 28/X11 Map View 50x35 Zoom Use 0% Tactical HUD 0 Map Filters NONE Filters NONE Steam 1 RUN: 226ea9f6-3ec1-4d63-ab6a-4ccc25756ff7